[Event "4NCL 2022-2023"]
[Site "Daventry"]
[Date "2023.01.15"]
[Round "4.4"]
[White "Pert, Richard G"]
[Black "Wall, Tim P"]
[Result "1-0"]
[ECO "C41"]
[WhiteElo "2411"]
[BlackElo "2258"]
[Annotator "TA"]
[PlyCount "89"]
[EventDate "2022.10.20"]
[EventType "team-tourn"]
[EventCountry "ENG"]
[SourceTitle "playchess.com"]
[Source "ChessBase"]
[SourceQuality "1"]
[TimeControl "40/6000+30:2400+30"]

{[%evp 14,89,25,28,40,28,27,35,35,28,37,18,31,32,27,29,43,51,42,14,19,8,26,8,14,13,13,10,12,0,16,22,20,6,4,9,37,28,50,0,0,0,0,0,25,20,22,20,20,20,45,0,0,8,7,0,47,45,45,51,47,43,39,0,0,0,4512,4782,906,873,2200,2558,1392,964,29981,29982,29982,29983]} 1. d4 {[%emt 0:00:05]} d6 {[%emt 0:00:22]} 2. e4 {[%emt 0:00:47]} Nf6 {[%emt 0:00:12]} 3. Nc3 {[%emt 0:00:31]} e5 {[%emt 0:00:13]} 4. Nge2 {[%emt 0:01:07]} exd4 {[%emt 0:00:36]} 5. Nxd4 {[%emt 0:00:35]} Be7 {[%emt 0:00:18]} 6. Be2 {[%emt 0:05:25]} O-O {[%emt 0:00:18]} 7. O-O {[%emt 0:00:14]} Re8 {[%emt 0:04:55]} 8. Re1 {[%emt 0:05:57]} Bf8 {[%emt 0:07:07] C41: Philidor Defence.} 9. Bf1 {[%emt 0:07:14]} Nc6 {[%emt 0:16:27]} 10. Bg5 {[%emt 0:09:27]} Be7 {[%emt 0:04:41] [#] White is slightly better.} 11. h3 $146 {[%emt 0:18:01]} ({Predecessor:} 11. Nxc6 bxc6 12. e5 dxe5 13. Rxe5 Qxd1 14. Rxd1 Be6 15. Ree1 Rab8 16. b3 Bf5 17. Bd3 Bxd3 18. Rxd3 {1-0 Montoliu Cervero,F (2338)-Vassallo Barroche,M (2430) ESP-chT CECLUB Div1 2015 (4.4)}) 11... h6 {[%emt 0:01:41]} 12. Bh4 {[%emt 0:02:17]} Nxd4 {[%emt 0:04:57]} 13. Qxd4 {[%emt 0:00:08]} c6 {[%emt 0:00:10]} 14. Rad1 {[%emt 0:02:02]} Qb6 {[%emt 0:02:16]} 15. Qxb6 {[%emt 0:08:32]} axb6 {[%emt 0:02:57][%cal Ba7b6,Bb6b5,Bb5c4][%mdl 32]} 16. a3 {[%emt 0:06:20]} Be6 {[%emt 0:03:39]} 17. f4 {[%emt 0:02:13][%cal Bf2f4,Bf4f5][%mdl 32]} b5 {[%emt 0:03:16]} 18. f5 {[%emt 0:06:56]} Bc4 {[%emt 0:06:26]} 19. Bxc4 {[%emt 0:00:41]} bxc4 {[%emt 0:00:09]} 20. e5 {[%emt 0:01:40]} dxe5 {[%emt 0:03:23]} 21. Rxe5 {[%emt 0:00:08]} Bd6 {[%emt 0:08:11][%mdl 64] [#] Discovered Attack} 22. Rxe8+ {[%emt 0:01:07]} (22. Rxd6 $2 {is the wrong capture.} Rxe5 23. Bxf6 gxf6 $19) 22... Nxe8 {[%emt 0:00:13][%cal Bf6e8,Be8c7,Bc7d5][%mdl 32]} 23. Ne4 {[%emt 0:03:15]} Be5 {[%emt 0:02:32]} 24. c3 {[%emt 0:00:34]} Nc7 {[%emt 0:07:29]} 25. Rd7 {[%emt 0:03:06]} b5 {[%emt 0:07:46]} 26. Kf2 {[%emt 0:08:05]} (26. Nd6 $14) 26... Nd5 $11 {[%emt 0:03:11]} 27. Bg3 {[%emt 0:02:04]} Nb6 {[%emt 0:06:00]} 28. Rd2 {[%emt 0:02:18]} Re8 {[%emt 0:04:00]} 29. Bxe5 {[%emt 0:06:40]} Rxe5 {[%emt 0:00:08][%mdl 4096] Endgame KRN-KRN} 30. Rd8+ {[%emt 0:00:02]} Kh7 {[%emt 0:00:06]} 31. Nd6 {[%emt 0:00:04][%cal Od8h8] Threatens to win with Rh8+!} g6 {[%emt 0:05:07]} 32. g4 {[%emt 0:04:33]} (32. Nxf7 $2 {loses.} Rxf5+ 33. Kg1 Rxf7 $19) (32. Rf8 $5 {[%cal Rf8f7]}) 32... gxf5 {[%emt 0:00:48]} 33. Nxf5 {[%emt 0:00:15] Black should prevent Rf8.} Na4 {[%emt 0:02:05]} 34. Rd6 {[%emt 0:01:32]} Nxb2 {[%emt 0:02:33]} (34... Re6 $11 {deserves consideration.}) 35. Rxh6+ $14 {[%emt 0:01:20]} Kg8 {[%emt 0:00:04]} 36. Rxc6 {[%emt 0:00:15]} Nd1+ {[%emt 0:00:11]} 37. Kf3 {[%emt 0:00:14]} Nxc3 {[%emt 0:00:05]} 38. Kf4 {[%emt 0:00:25]} Re4+ {[%emt 0:01:49]} 39. Kg5 {[%emt 0:00:14] Black must now prevent Rc8+.} Nb1 $2 {[%emt 0:01:28][%mdl 8192]} (39... Nd5 $11) 40. Rc8+ $18 {[%emt 0:01:29]} Kh7 {[%emt 0:00:02] [#]} 41. Kf6 $1 {[%emt 0:01:40]} Nd2 {[%emt 0:04:20]} 42. Kxf7 {[%emt 0:07:10] Intending Rc6 and mate.} Nf3 {[%emt 0:01:09]} 43. Kf6 {[%emt 0:01:34]} Ne5 {[%emt 0:09:42]} 44. Rc7+ {[%emt 0:04:19]} Kh8 {[%emt 0:01:58]} 45. g5 {[%emt 0:04:17] Weighted Error Value: White=0.08 (flawless) /Black=0.32} 1-0

[Event "4NCL 2022-2023"]
[Site "Daventry"]
[Date "2023.01.15"]
[Round "4.5"]
[White "Li, Harry"]
[Black "Arkell, Keith C"]
[Result "0-1"]
[ECO "A41"]
[WhiteElo "2099"]
[BlackElo "2406"]
[Annotator "TA"]
[PlyCount "72"]
[EventDate "2022.10.20"]
[EventType "team-tourn"]
[EventCountry "ENG"]
[SourceTitle "playchess.com"]
[Source "ChessBase"]
[SourceQuality "1"]
[TimeControl "40/6000+30:2400+30"]

{[%evp 14,72,28,29,39,37,27,25,28,34,61,27,27,-14,9,-35,0,-42,-21,-42,-33,-35,23,-10,5,-58,-35,-26,-26,-51,-15,-29,-25,-38,-39,-62,-63,-112,-107,-108,-47,-106,-108,-331,-331,-329,-330,-322,-325,-347,-344,-29992,-29993,-29993,-29994,-29994,-29995,-29995,-29996,-29996,-29997]} 1. e4 {[%emt 0:00:01]} g6 {[%emt 0:06:21]} 2. d4 {[%emt 0:00:18]} Bg7 {[%emt 0:00:05]} 3. c4 {[%emt 0:01:57]} d6 {[%emt 0:02:15]} 4. Nc3 {[%emt 0:00:17]} Nc6 {[%emt 0:00:34]} 5. Nf3 {[%emt 0:01:07]} Bg4 {[%emt 0:00:16]} 6. d5 {[%emt 0:00:16]} Nd4 {[%emt 0:03:29]} 7. Be2 {[%emt 0:00:14]} Bxf3 {[%emt 0:00:05]} 8. Bxf3 {[%emt 0:00:07]} c5 {[%emt 0:01:18] A41: 1 d4 d6: Tartakower System and Modern Defence.} 9. O-O {[%emt 0:02:54]} Nf6 {[%emt 0:01:20]} 10. Be3 {[%emt 0:01:43]} Nd7 {[%emt 0:00:34] White has an edge.} 11. Bg4 {[%emt 0:05:57] [#]} a6 $146 {[%emt 0:08:02] Black is weak on the light squares} ({Predecessor:} 11... O-O 12. Bxd7 Qxd7 13. Rb1 b6 14. Qd3 e5 15. dxe6 fxe6 16. f4 Rf7 17. Rf2 Raf8 {1-0 Burmakin,V (2575)-Lorenzo de la Riva,L (2424) Montcada op 21st 2013 (4)}) 12. f4 {[%emt 0:20:55][%cal Ob2b4]} b5 {[%emt 0:03:45]} 13. b3 {[%emt 0:05:45]} O-O {[%emt 0:09:29]} (13... Nf6 $5 {[%cal Rf6g4]} 14. Bf3 (14. Bxd4 cxd4 15. Qxd4 O-O $17) 14... bxc4 $11) 14. Rb1 {[%emt 0:04:08]} Rb8 {[%emt 0:07:22]} (14... Nf6 $5 {[%cal Rb5b4]}) 15. Ne2 {[%emt 0:14:02][%cal Re2d4]} Nf6 {[%emt 0:17:10] A dynamic duo of knights.} (15... bxc4 {looks sharper.} 16. Nxd4 cxd4 17. Bxd4 cxb3 18. Rxb3 Bxd4+ 19. Qxd4 Nc5) 16. Bf3 {[%emt 0:00:08]} Nxf3+ {[%emt 0:00:30]} 17. gxf3 {[%emt 0:00:02]} e6 {[%emt 0:04:48]} (17... Qd7 $15) 18. Ng3 {[%emt 0:01:05]} bxc4 {[%emt 0:05:28] ...exd5 would be deadly.} 19. bxc4 {[%emt 0:00:04]} (19. dxe6 $1 $11 fxe6 20. bxc4) 19... Rxb1 {[%emt 0:00:06]} 20. Qxb1 {[%emt 0:00:02]} exd5 {[%emt 0:00:11]} 21. cxd5 {[%emt 0:00:07]} Re8 {[%emt 0:00:20] White must now prevent ...Nxd5.} 22. Rd1 {[%emt 0:06:13]} h5 {[%emt 0:01:09][%cal Bh7h5,Bh5h4][%mdl 32]} 23. Qb7 {[%emt 0:06:11]} h4 {[%emt 0:00:36]} 24. Nf1 {[%emt 0:00:41]} Nh5 {[%emt 0:03:37]} 25. Qxa6 {[%emt 0:03:13] [#]} (25. Kh1 $15) 25... Bh6 $1 $17 {[%emt 0:04:33]} 26. Kh1 {[%emt 0:17:02]} Nxf4 {[%emt 0:00:58] aiming for ...Qg5.} (26... Bxf4 27. Bxf4 Nxf4 28. Ne3 $15) 27. Nd2 {[%emt 0:01:20]} (27. Qb5 $1 $15) 27... Qf6 {[%emt 0:02:48]} 28. Bxc5 $2 {[%emt 0:01:32] This move loses the game for White.} (28. Rb1 $17) 28... Nh3 $19 {[%emt 0:00:55] And now ...Bxd2 would win.} (28... Qg5 29. Rg1 (29. Bxd6 $2 Qg2#) 29... Qh5 30. Bxd6 $11 (30. Qc6 Rd8 $11)) 29. Qf1 {[%emt 0:02:43]} (29. Qxd6 Nf2+ 30. Kg1 Qxd6 31. Bxd6 Nxd1 $19) 29... dxc5 {[%emt 0:13:46]} 30. Qxh3 {[%emt 0:00:04][%cal Oe4e5]} Qc3 {[%emt 0:01:48]} 31. Nb3 {[%emt 0:06:49]} (31. Qd7 Ra8 32. Qb5 Bxd2 $19) 31... Rxe4 {[%emt 0:01:41] ( -> ...Re1+)} 32. Nxc5 $2 {[%emt 0:01:46] [#]} ({Not} 32. Qc8+ $2 Kg7 33. Rf1 Re1 $19) (32. Qf1 $19 Re8 33. d6) 32... Re1+ {[%emt 0:00:57] Black mates.} 33. Rxe1 {[%emt 0:00:13]} Qxe1+ {[%emt 0:00:04]} 34. Kg2 {[%emt 0:00:02]} Qe2+ {[%emt 0:03:15]} 35. Kh1 {[%emt 0:00:02]} Be3 {[%emt 0:02:57]} ({Worse is} 35... Qxa2 36. Qc8+ Kh7 37. Ne4 $17 (37. Qb7 {gets mated.} h3 38. Qxf7+ Bg7)) 36. Qc8+ {[%emt 0:05:19]} Kh7 {[%emt 0:00:05] Weighted Error Value: White=0.51/Black=0.09 (flawless)} 0-1

[Event "4NCL 2022-2023"]
[Site "Daventry"]
[Date "2023.01.15"]
[Round "4.6"]
[White "Eggleston, David J"]
[Black "Clarke, Connor"]
[Result "1-0"]
[ECO "B04"]
[WhiteElo "2359"]
[BlackElo "1973"]
[Annotator "TA"]
[PlyCount "125"]
[EventDate "2022.10.20"]
[EventType "team-tourn"]
[EventCountry "ENG"]
[SourceTitle "playchess.com"]
[Source "ChessBase"]
[SourceQuality "1"]
[TimeControl "40/6000+30:2400+30"]

{[%evp 14,125,50,52,57,49,41,50,54,56,47,44,34,24,27,25,27,0,10,5,20,11,30,36,24,12,30,7,8,7,8,0,0,-2,13,0,49,46,75,75,75,53,120,93,131,53,58,20,16,16,16,16,16,16,16,12,17,19,32,38,46,41,127,119,159,116,170,43,35,35,35,35,35,35,47,31,32,32,77,35,204,0,262,262,335,341,342,354,4045,595,5526,5513,4722,2397,5393,5311,4592,3858,3112,3197,3114,1544,12813,12804,12451,10192,10508,10006,6617,5612,29982,29983,29980,29980]} 1. e4 {[%emt 0:00:03]} Nf6 {[%emt 0:00:30]} 2. e5 {[%emt 0:00:46]} Nd5 {[%emt 0:00:12]} 3. d4 {[%emt 0:00:08]} d6 {[%emt 0:00:29]} 4. Nf3 {[%emt 0:00:05]} dxe5 {[%emt 0:00:08]} 5. Nxe5 {[%emt 0:00:05]} g6 {[%emt 0:00:11]} 6. Bc4 {[%emt 0:00:07]} Be6 {[%emt 0:00:05]} 7. O-O {[%emt 0:00:30]} Bg7 {[%emt 0:00:09]} 8. Re1 {[%emt 0:08:09]} O-O {[%emt 0:00:48][%cal Oc7c5] B04: Alekhine's Defence: 4 Nf3.} 9. Bb3 {[%emt 0:01:50] [#]} a5 $146 {[%emt 0:00:30]} ({Predecessor:} 9... Nd7 10. Nf3 c6 11. Rxe6 fxe6 12. Qe2 e5 13. dxe5 Nc5 14. Nbd2 Nxb3 15. axb3 Nf4 16. Qc4+ {0-1 Mamedov,R (2654)-Carlsen,M (2863) Katara Bullet Final blitz 2020 (2.6)}) 10. c3 {[%emt 0:04:38]} Nd7 {[%emt 0:06:37] White is slightly better.} 11. Nf3 {[%emt 0:01:07][%cal Oe1e6]} c5 {[%emt 0:05:33]} 12. Ng5 {[%emt 0:01:48] aiming for Rxe6.} (12. Na3 $5) 12... Nc7 {[%emt 0:00:30]} 13. Nxe6 {[%emt 0:02:26]} Nxe6 {[%emt 0:00:46]} 14. Bxe6 {[%emt 0:09:14]} fxe6 {[%emt 0:00:05]} 15. d5 {[%emt 0:01:25]} Nf6 {[%emt 0:14:14]} 16. dxe6 {[%emt 0:05:17]} Qxd1 {[%emt 0:01:42]} 17. Rxd1 {[%emt 0:00:02]} Ra6 {[%emt 0:00:37]} 18. Be3 {[%emt 0:07:31]} Rc8 {[%emt 0:00:32]} 19. Na3 {[%emt 0:03:58]} Rxe6 {[%emt 0:01:16]} 20. h3 {[%emt 0:00:11]} Kf7 {[%emt 0:08:59]} 21. Nb5 {[%emt 0:01:46]} a4 {[%emt 0:18:15]} 22. Rab1 {[%emt 0:13:26]} Ne4 {[%emt 0:04:33]} 23. Bf4 {[%emt 0:06:31]} Rb6 {[%emt 0:06:53]} 24. c4 {[%emt 0:05:27]} Rcc6 {[%emt 0:09:31]} (24... Bd4 $11) 25. f3 {[%emt 0:06:29]} Nd6 {[%emt 0:01:31]} 26. Bxd6 {[%emt 0:00:06]} exd6 {[%emt 0:00:18]} 27. f4 {[%emt 0:02:15]} Bf8 {[%emt 0:02:31]} (27... Bd4+ $14 28. Kh2 (28. Nxd4 cxd4 29. b3 axb3 $16) 28... Ke6) 28. Rd5 {[%emt 0:01:50]} Rc8 {[%emt 0:01:02]} 29. Rbd1 {[%emt 0:01:12] White is more active.} ({White should play} 29. Kf2 $16) 29... Re8 $14 {[%emt 0:01:40]} 30. Rxd6 {[%emt 0:00:58]} ({Of course not} 30. Nxd6+ Bxd6 31. Rxd6 Rxb2 32. Rd7+ Re7 $17) 30... Bxd6 {[%emt 0:02:52]} 31. Nxd6+ {[%emt 0:00:05]} Rxd6 {[%emt 0:00:18]} 32. Rxd6 {[%emt 0:00:04][%mdl 4096] Endgame KR-KR} Re4 {[%emt 0:01:21][%csl LRc4,LRf4]} 33. Rd7+ {[%emt 0:06:57]} Ke6 {[%emt 0:00:49]} 34. Rxh7 {[%emt 0:03:29]} Rxc4 {[%emt 0:01:45]} 35. Rxb7 {[%emt 0:00:32]} Rxf4 {[%emt 0:00:44]} 36. Rb6+ {[%emt 0:04:45]} Kf7 $1 {[%emt 0:02:49]} 37. a3 {[%emt 0:03:01]} Kg7 {[%emt 0:02:00]} (37... Rc4 $14) 38. Re6 $1 $16 {[%emt 0:07:49]} Rc4 {[%emt 0:05:31]} 39. Kf2 $1 {[%emt 0:01:13]} Rc1 {[%emt 0:00:45]} (39... Kf7 $16 {was worth a try.} 40. Re3 Rd4) 40. Re2 {[%emt 0:02:02]} (40. Re1 $18 Rc4 41. Ke3) 40... c4 $1 $14 {[%emt 0:04:44]} 41. Kf3 {[%emt 0:00:00]} c3 {[%emt 0:00:00]} 42. bxc3 {[%emt 0:00:00]} Rxc3+ {[%emt 0:00:00]} 43. Re3 {[%emt 0:00:00]} Rc4 {[%emt 0:00:00]} 44. g4 {[%emt 0:00:00]} Kf6 {[%emt 0:00:00]} 45. Kg3 {[%emt 0:00:00]} Rc2 {[%emt 0:02:06]} 46. Rd3 {[%emt 0:00:00]} Ke5 $2 {[%emt 0:03:00] [#]} (46... Rc4 $14) 47. Re3+ $2 {[%emt 0:00:00]} (47. Kh4 $1 $18 {[%cal Rh4g5]}) 47... Kd4 $2 {[%emt 0:01:17][%mdl 8192] [#]} (47... Kf6 $1 $11) 48. Rf3 $1 $18 {[%emt 0:00:05]} g5 {[%emt 0:01:26]} 49. h4 {[%emt 0:01:27]} gxh4+ {[%emt 0:05:54]} 50. Kxh4 {[%emt 0:00:16]} Ke5 $2 {[%emt 0:01:07]} (50... Ke4 51. Rf8 Ra2) 51. Kg5 {[%emt 0:05:12]} (51. Rf5+ $142 Kd6 52. Rf4) 51... Rc8 {[%emt 0:01:26]} 52. Rf5+ {[%emt 0:01:19]} Ke6 {[%emt 0:00:26]} 53. Rf4 {[%emt 0:02:10]} Rc3 {[%emt 0:03:53]} 54. Rxa4 {[%emt 0:00:25]} Kf7 {[%emt 0:00:08]} 55. Rf4+ {[%emt 0:00:50]} Kg7 {[%emt 0:00:09]} 56. a4 {[%emt 0:00:10]} Rc1 {[%emt 0:01:00]} 57. a5 {[%emt 0:00:34]} (57. Rf5 $142 Rc6 58. Ra5) 57... Ra1 {[%emt 0:00:10]} 58. Rf5 {[%emt 0:00:12]} Ra4 {[%emt 0:00:07]} 59. Rb5 {[%emt 0:00:09]} Kf7 {[%emt 0:01:19]} 60. Kf5 {[%emt 0:00:04] Threatening mate with Rb7+.} Ra2 {[%emt 0:02:18]} 61. g5 {[%emt 0:00:21] Rb7+ would kill now.} Rc2 {[%emt 0:03:07]} 62. Rb7+ {[%emt 0:01:08]} Kg8 {[%emt 0:00:25]} 63. a6 {[%emt 0:00:05] Weighted Error Value: White=0.33/Black=0.32} 1-0

[Event "4NCL 2022-2023"]
[Site "Daventry"]
[Date "2023.01.15"]
[Round "4.7"]
[White "Arnott, Jonathan W"]
[Black "Radeva, Viktoria"]
[Result "1/2-1/2"]
[ECO "C02"]
[WhiteElo "2063"]
[BlackElo "2242"]
[Annotator "TA"]
[PlyCount "65"]
[EventDate "2022.10.20"]
[EventType "team-tourn"]
[EventCountry "ENG"]
[SourceTitle "playchess.com"]
[Source "ChessBase"]
[SourceQuality "1"]
[TimeControl "40/6000+30:2400+30"]

{[%evp 11,65,0,0,-30,-30,-33,0,-22,-3,-13,0,-6,0,-7,0,-19,-20,-20,-8,-18,-18,-31,-20,-33,0,0,0,-13,-10,-13,0,0,0,0,0,0,0,0,11,14,86,45,104,25,120,34,25,29,28,3,6,4,8,8,9,9]} 1. e4 {[%emt 0:00:01]} c5 {[%emt 0:00:20]} 2. Nf3 {[%emt 0:00:09]} e6 {[%emt 0:00:05]} 3. c3 {[%emt 0:00:04]} d5 {[%emt 0:00:11]} 4. e5 {[%emt 0:00:17]} Nc6 {[%emt 0:00:39][%cal Bb8c6,Bc6b4,Bb4d3][%mdl 32]} 5. d4 {[%emt 0:00:04]} Qb6 {[%emt 0:03:16]} 6. Bd3 {[%emt 0:04:47]} cxd4 {[%emt 0:00:09]} 7. O-O $1 {[%emt 0:00:49][%mdl 4] is more profitable than 7.cxd4 at the moment. C02: French: Advance Variation.} Bd7 {[%emt 0:01:24]} 8. Qe2 {[%emt 0:02:44]} Rc8 {[%emt 0:02:27]} 9. cxd4 {[%emt 0:09:42]} Nb4 {[%emt 0:10:09] White must now prevent ...Nxd3.} 10. Nc3 {[%emt 0:00:48]} Nxd3 {[%emt 0:00:53]} 11. Qxd3 {[%emt 0:00:03]} Bb4 {[%emt 0:05:41]} 12. Rd1 {[%emt 0:03:11]} Ne7 {[%emt 0:08:47]} 13. Bg5 {[%emt 0:04:17]} h6 {[%emt 0:11:42][%cal Bh7h6,Bh6h5][%mdl 32]} 14. Bd2 {[%emt 0:03:54] [#]} Nf5 $146 {[%emt 0:03:53]} ({Predecessor:} 14... O-O 15. a3 Bxc3 16. Bxc3 Bb5 17. Qd2 Nc6 18. b3 a5 19. Rab1 Qa6 20. Rb2 a4 21. bxa4 Bxa4 {½-½ Buchicchio,G (1825)-Pulito,A (2032) ITA-ch U20 25th 2002 (8)}) 15. g4 {[%emt 0:02:30]} Ne7 {[%emt 0:01:55]} 16. Rac1 {[%emt 0:04:49]} h5 {[%emt 0:07:17]} 17. h3 {[%emt 0:07:52]} Ng6 {[%emt 0:06:49]} (17... hxg4 {is interesting.} 18. hxg4 f5 19. Bg5 fxg4 20. Nh4 Rc4) 18. Ne2 {[%emt 0:08:37]} Rxc1 {[%emt 0:05:52]} 19. Rxc1 {[%emt 0:01:13]} hxg4 {[%emt 0:06:20]} 20. hxg4 {[%emt 0:00:36]} Nh4 {[%emt 0:08:06]} 21. Bg5 {[%emt 0:03:38]} Nxf3+ {[%emt 0:01:22]} 22. Qxf3 {[%emt 0:00:08]} Be7 {[%emt 0:04:59]} 23. Bxe7 {[%emt 0:02:05]} Kxe7 {[%emt 0:00:08][%cal Be8e7,Be7d8,Bd8c7,Bc7b8][%mdl 32]} 24. Qa3+ {[%emt 0:00:07]} Kd8 {[%emt 0:00:19]} (24... Ke8 $5) 25. Kg2 {[%emt 0:05:37]} Bb5 {[%emt 0:06:29]} (25... Ke8 $11 {keeps the balance.}) 26. Ng3 {[%emt 0:01:55]} (26. Ng1 {keeps more tension.} Kd7 27. Nf3 Bc4 28. b3) 26... Bc6 {[%emt 0:06:30] [#]} (26... Bd7 $14) 27. Qc3 {[%emt 0:13:20] White is more active.} (27. Qd6+ $1 $16 Ke8 28. Qb8+ (28. Nh5 Rxh5 29. gxh5 Qxd4 $11) 28... Qd8 29. Qxa7) 27... Qa6 {[%emt 0:01:10] [#]} (27... Kc8 $11) 28. b3 {[%emt 0:01:54]} ({White should try} 28. Qf3 $1 $16 {[%cal Rf3f7]} Ke8 29. Nh5) 28... Qa3 $14 {[%emt 0:02:09]} (28... Qxa2 $2 29. Ra1 $18) 29. Qd2 {[%emt 0:04:52]} Kc7 {[%emt 0:00:52]} 30. b4 {[%emt 0:02:37] Hoping for b5.} Kb8 {[%emt 0:00:45] The position is equal.} 31. Qc3 {[%emt 0:03:20]} Qxc3 {[%emt 0:00:52]} (31... Qxa2 $2 32. b5 Qa4 33. bxc6 $18) 32. Rxc3 {[%emt 0:00:09]} Rh4 {[%emt 0:01:59]} 33. f3 {[%emt 0:00:42] Weighted Error Value: White=0.17 (very precise) /Black=0.18 (very precise)} 1/2-1/2

[Event "4NCL 2022-2023"]
[Site "Daventry"]
[Date "2023.01.15"]
[Round "4.8"]
[White "Boswell, Jacob Connor"]
[Black "Flint, Martina"]
[Result "1-0"]
[ECO "B06"]
[WhiteElo "2108"]
[BlackElo "1840"]
[Annotator "TA"]
[PlyCount "59"]
[EventDate "2022.10.20"]
[EventType "team-tourn"]
[EventCountry "ENG"]
[SourceTitle "playchess.com"]
[Source "ChessBase"]
[SourceQuality "1"]
[TimeControl "40/6000+30:2400+30"]

{[%evp 10,59,37,40,70,76,109,99,131,117,120,123,159,165,156,164,154,115,148,114,161,161,149,148,156,156,172,170,218,75,77,64,137,126,127,106,121,110,307,297,493,477,437,422,422,412,519,336,308,253,1433,1419]} 1. e4 {[%emt 0:00:51]} g6 {[%emt 0:00:10]} 2. d4 {[%emt 0:00:45]} Bg7 {[%emt 0:00:22]} 3. Nc3 {[%emt 0:00:15]} d6 {[%emt 0:00:18]} 4. f4 {[%emt 0:00:29]} e6 {[%emt 0:00:29]} 5. Nf3 {[%emt 0:01:24]} Ne7 {[%emt 0:00:51]} 6. Be3 {[%emt 0:01:46]} d5 {[%emt 0:01:55] B06: Modern Defence.} 7. e5 {[%emt 0:00:57]} Nf5 {[%emt 0:03:34]} 8. Bf2 {[%emt 0:01:25] [#]} c6 $146 {[%emt 0:01:30] White is better.} ({Predecessor:} 8... h5 9. Bd3 h4 10. Bxf5 gxf5 11. Qd2 Nd7 12. Na4 Nf8 13. O-O-O Ng6 14. g3 h3 {0-1 Serrano Ruiz,M (1890)-Longa Yauca,J (2266) Collado Villalba op 39th 2022 (7)}) 9. g4 {[%emt 0:02:09]} Ne7 {[%emt 0:01:09]} 10. Qd2 {[%emt 0:02:51]} b5 {[%emt 0:02:55]} 11. h4 {[%emt 0:05:20]} h5 {[%emt 0:06:46]} 12. gxh5 {[%emt 0:01:53]} Rxh5 {[%emt 0:00:12]} 13. Bh3 {[%emt 0:05:07]} Nd7 {[%emt 0:04:16]} 14. Ng5 {[%emt 0:12:33]} Nb6 {[%emt 0:01:08] [#]} (14... Qa5 $16) 15. b3 $1 $18 {[%emt 0:04:01]} a5 {[%emt 0:00:53]} 16. Ne2 {[%emt 0:10:09]} Rh8 {[%emt 0:02:09]} 17. Bg4 {[%emt 0:06:48] White is much more active.} Bh6 {[%emt 0:02:18]} 18. O-O-O {[%emt 0:03:40]} a4 {[%emt 0:02:57]} (18... Bxg5 $142 19. fxg5 (19. hxg5 Kd7 $16) 19... Kd7) 19. b4 {[%emt 0:01:00]} (19. h5 $18) 19... Nc4 $16 {[%emt 0:03:56]} 20. Qd3 {[%emt 0:00:31]} a3 {[%emt 0:00:21] [#]} ({Better is} 20... Nf5 $14) 21. Rdg1 $1 {[%emt 0:01:05]} Nf5 {[%emt 0:04:10]} 22. c3 {[%emt 0:12:26]} Qe7 {[%emt 0:03:34]} 23. h5 {[%emt 0:04:32] hxg6 is the strong threat.} Bxg5 $2 {[%emt 0:01:42] A mistake that costs the game.} (23... Nb2 $16 24. Qf3 Qf8) 24. Bxf5 $18 {[%emt 0:01:33]} Bxf4+ $2 {[%emt 0:04:53]} ({Weaker is} 24... exf5 25. fxg5 Be6 26. Qf3 $16) (24... Nb2 {was called for.}) 25. Nxf4 {[%emt 0:00:10]} g5 {[%emt 0:00:21] [#]} 26. Ng6 $1 {[%emt 0:06:39][%mdl 512]} fxg6 {[%emt 0:00:35]} 27. Bxg6+ {[%emt 0:01:49]} Kd8 {[%emt 0:00:32]} 28. Be1 {[%emt 0:13:12]} Bd7 {[%emt 0:00:44]} 29. Rf1 {[%emt 0:00:19] And now Rf7 would win.} g4 $2 {[%emt 0:04:25]} (29... Be8 30. Qf3 Ra7) 30. Bh4 {[%emt 0:00:39] Weighted Error Value: White=0.26 (precise) /Black=0.50} 1-0